[Event "Early-Titled-Tuesday-Blitz-May-14-2024"]
[Site "Chess.com"]
[Date "2024.05.14"]
[Round "8"]
[White "PonyQueen07"]
[Black "dianamirza"]
[Result "1-0"]
[WhiteElo "2112"]
[BlackElo "1945"]
[TimeControl "180+1"]
[EndTime "9:30:24 PDT"]
[Termination "PonyQueen07 won by checkmate"]

1. c4 {[%clk 0:03:00.9]} 1... c5 {[%clk 0:02:51.6]} 2. Nc3 {[%clk 0:03:00.5]}
2... Nc6 {[%clk 0:02:52.5]} 3. g3 {[%clk 0:03:00.1]} 3... g6 {[%clk 0:02:50.4]}
4. Bg2 {[%clk 0:03:00]} 4... Bg7 {[%clk 0:02:51.1]} 5. e4 {[%clk 0:02:57.7]}
5... e6 {[%clk 0:02:51.6]} 6. Nge2 {[%clk 0:02:56.7]} 6... Nge7 {[%clk
0:02:52.2]} 7. O-O {[%clk 0:02:57.1]} 7... O-O {[%clk 0:02:51.6]} 8. d3 {[%clk
0:02:57.1]} 8... d5 {[%clk 0:02:48.2]} 9. exd5 {[%clk 0:02:56.3]} 9... exd5
{[%clk 0:02:49.1]} 10. Nxd5 {[%clk 0:02:53.7]} 10... Nxd5 {[%clk 0:02:48.7]} 11.
Bxd5 {[%clk 0:02:50.6]} 11... Nb4 {[%clk 0:02:46.9]} 12. Bg2 {[%clk 0:02:41.5]}
12... Nxd3 {[%clk 0:02:44]} 13. Qb3 {[%clk 0:02:17.3]} 13... Nxc1 {[%clk
0:02:26.6]} 14. Raxc1 {[%clk 0:02:14.3]} 14... Qc7 {[%clk 0:02:26.5]} 15. Nf4
{[%clk 0:02:08.5]} 15... Rb8 {[%clk 0:02:19.6]} 16. Nd5 {[%clk 0:02:05.4]} 16...
Qe5 {[%clk 0:02:18.4]} 17. Nc3 {[%clk 0:01:42]} 17... Bf5 {[%clk 0:01:59.3]} 18.
Rfe1 {[%clk 0:01:31.5]} 18... Qf6 {[%clk 0:01:46.8]} 19. Re2 {[%clk 0:01:21.3]}
19... Bd3 {[%clk 0:01:32.8]} 20. Nd5 {[%clk 0:01:10.5]} 20... Qg5 {[%clk
0:01:22.2]} 21. f4 {[%clk 0:00:47.3]} 21... Bd4+ {[%clk 0:00:54]} 22. Kh1 {[%clk
0:00:42.1]} 22... Bxc4 {[%clk 0:00:21.9]} 23. Qxc4 {[%clk 0:00:31.3]} 23... Qg4
{[%clk 0:00:21.7]} 24. Qxd4 {[%clk 0:00:20.7]} 24... cxd4 {[%clk 0:00:11.6]} 25.
Nf6+ {[%clk 0:00:20.4]} 25... Kg7 {[%clk 0:00:09.9]} 26. Nxg4 {[%clk 0:00:20.8]}
26... f5 {[%clk 0:00:09.6]} 27. Ne5 {[%clk 0:00:20.7]} 27... Rfe8 {[%clk
0:00:09.6]} 28. Rd2 {[%clk 0:00:20.2]} 28... Rbd8 {[%clk 0:00:09.4]} 29. Rcd1
{[%clk 0:00:19.5]} 29... Kf6 {[%clk 0:00:09.7]} 30. h3 {[%clk 0:00:16.6]} 30...
g5 {[%clk 0:00:09.3]} 31. Rxd4 {[%clk 0:00:15]} 31... Rxd4 {[%clk 0:00:05.8]}
32. Rxd4 {[%clk 0:00:14.7]} 32... gxf4 {[%clk 0:00:06.7]} 33. gxf4 {[%clk
0:00:14.8]} 33... Rc8 {[%clk 0:00:06.6]} 34. Rd6+ {[%clk 0:00:13]} 34... Ke7
{[%clk 0:00:06]} 35. Rd7+ {[%clk 0:00:12.4]} 35... Ke6 {[%clk 0:00:06.2]} 36.
Bd5+ {[%clk 0:00:12]} 36... Kf6 {[%clk 0:00:05.3]} 37. Rf7# {[%clk 0:00:12.4]}
1-0

[Event "Early-Titled-Tuesday-Blitz-May-14-2024"]
[Site "Chess.com"]
[Date "2024.05.14"]
[Round "8"]
[White "BardArtem"]
[Black "frederiksvane"]
[Result "1-0"]
[WhiteElo "2777"]
[BlackElo "2955"]
[TimeControl "180+1"]
[EndTime "9:30:27 PDT"]
[Termination "BardArtem won by checkmate"]

1. b3 {[%clk 0:03:00.9]} 1... a5 {[%clk 0:02:57.7]} 2. e4 {[%clk 0:02:54.7]}
2... a4 {[%clk 0:02:57.3]} 3. d4 {[%clk 0:02:51]} 3... e6 {[%clk 0:02:56.9]} 4.
Nf3 {[%clk 0:02:50]} 4... d5 {[%clk 0:02:56.5]} 5. exd5 {[%clk 0:02:49.2]} 5...
exd5 {[%clk 0:02:57]} 6. Bd3 {[%clk 0:02:45.4]} 6... axb3 {[%clk 0:02:51]} 7.
cxb3 {[%clk 0:02:45.2]} 7... Bb4+ {[%clk 0:02:47.2]} 8. Bd2 {[%clk 0:02:42]}
8... Be7 {[%clk 0:02:47.3]} 9. O-O {[%clk 0:02:37]} 9... Nf6 {[%clk 0:02:47.8]}
10. Re1 {[%clk 0:02:31.6]} 10... O-O {[%clk 0:02:48.1]} 11. Ne5 {[%clk
0:02:30.3]} 11... Nbd7 {[%clk 0:02:44.3]} 12. Nc3 {[%clk 0:02:26.5]} 12... c6
{[%clk 0:02:43.4]} 13. Qf3 {[%clk 0:02:13.8]} 13... Re8 {[%clk 0:02:38.4]} 14.
Bg5 {[%clk 0:01:41.9]} 14... Nf8 {[%clk 0:02:35.4]} 15. Re2 {[%clk 0:01:33.8]}
15... Ne6 {[%clk 0:02:28.2]} 16. Bxf6 {[%clk 0:01:26.1]} 16... Bxf6 {[%clk
0:02:24.9]} 17. Bxh7+ {[%clk 0:01:25.1]} 17... Kf8 {[%clk 0:02:17]} 18. Rae1
{[%clk 0:01:24]} 18... Nxd4 {[%clk 0:01:15.1]} 19. Ng6+ {[%clk 0:01:20.1]} 19...
fxg6 {[%clk 0:01:15.7]} 20. Rxe8+ {[%clk 0:01:20.8]} 20... Qxe8 {[%clk
0:01:16.6]} 21. Rxe8+ {[%clk 0:01:21.2]} 21... Kxe8 {[%clk 0:01:17.5]} 22. Bxg6+
{[%clk 0:01:20.7]} 22... Kd8 {[%clk 0:01:08.2]} 23. Qf4 {[%clk 0:01:12.1]} 23...
Bd7 {[%clk 0:01:03.4]} 24. h4 {[%clk 0:01:06.2]} 24... Ne6 {[%clk 0:00:57.3]}
25. Qg3 {[%clk 0:01:02.3]} 25... b5 {[%clk 0:00:53]} 26. a4 {[%clk 0:00:53.6]}
26... bxa4 {[%clk 0:00:20.6]} 27. Nxa4 {[%clk 0:00:51.6]} 27... Ke7 {[%clk
0:00:21]} 28. Bf5 {[%clk 0:00:45.2]} 28... Ra5 {[%clk 0:00:13.7]} 29. Bxe6
{[%clk 0:00:45]} 29... Kxe6 {[%clk 0:00:12.6]} 30. Qg4+ {[%clk 0:00:25.9]} 30...
Ke5 {[%clk 0:00:01.8]} 31. Qxd7 {[%clk 0:00:26.1]} 31... Rb5 {[%clk 0:00:02.4]}
32. Qxc6 {[%clk 0:00:22.6]} 32... Rxb3 {[%clk 0:00:02.8]} 33. Qc7+ {[%clk
0:00:20.4]} 33... Kd4 {[%clk 0:00:02.5]} 34. g3 {[%clk 0:00:20.2]} 34... Rb4
{[%clk 0:00:02]} 35. Qc5+ {[%clk 0:00:20.1]} 35... Ke5 {[%clk 0:00:02.5]} 36.
Qxb4 {[%clk 0:00:21]} 36... d4 {[%clk 0:00:03.1]} 37. Qc4 {[%clk 0:00:20.2]}
37... Ke4 {[%clk 0:00:04]} 38. Nc5+ {[%clk 0:00:20.7]} 38... Ke5 {[%clk
0:00:04.2]} 39. Qe6# {[%clk 0:00:21.3]} 1-0

[Event "Early-Titled-Tuesday-Blitz-May-14-2024"]
[Site "Chess.com"]
[Date "2024.05.14"]
[Round "8"]
[White "Bilan_Danila"]
[Black "zajka-molotok"]
[Result "0-1"]
[WhiteElo "2644"]
[BlackElo "2563"]
[TimeControl "180+1"]
[EndTime "9:30:27 PDT"]
[Termination "zajka-molotok won by resignation"]

1. d4 {[%clk 0:03:00.9]} 1... Nf6 {[%clk 0:02:58.1]} 2. Nf3 {[%clk 0:03:00]}
2... e6 {[%clk 0:02:57.7]} 3. g3 {[%clk 0:02:59.7]} 3... c5 {[%clk 0:02:57.5]}
4. c4 {[%clk 0:02:58.9]} 4... b6 {[%clk 0:02:56.5]} 5. Bg2 {[%clk 0:02:58.5]}
5... Bb7 {[%clk 0:02:57]} 6. d5 {[%clk 0:02:59]} 6... exd5 {[%clk 0:02:55]} 7.
Nh4 {[%clk 0:02:59]} 7... g6 {[%clk 0:02:49]} 8. cxd5 {[%clk 0:02:51.5]} 8...
Bg7 {[%clk 0:02:48.2]} 9. O-O {[%clk 0:02:48.6]} 9... d6 {[%clk 0:02:45.4]} 10.
Nc3 {[%clk 0:02:43.1]} 10... O-O {[%clk 0:02:44.6]} 11. Bf4 {[%clk 0:02:41.3]}
11... a6 {[%clk 0:02:42.4]} 12. e4 {[%clk 0:02:38.1]} 12... b5 {[%clk
0:02:38.5]} 13. e5 {[%clk 0:02:27.3]} 13... Nh5 {[%clk 0:02:36.4]} 14. Nf3
{[%clk 0:01:55.4]} 14... Nxf4 {[%clk 0:02:23.8]} 15. gxf4 {[%clk 0:01:56.3]}
15... Nd7 {[%clk 0:02:20.6]} 16. e6 {[%clk 0:01:35.3]} 16... Nb6 {[%clk
0:02:03.3]} 17. Ng5 {[%clk 0:01:21.5]} 17... f5 {[%clk 0:01:42]} 18. Re1 {[%clk
0:01:05.3]} 18... Qe7 {[%clk 0:01:40.3]} 19. a3 {[%clk 0:00:54.7]} 19... Nc4
{[%clk 0:01:29.7]} 20. Qe2 {[%clk 0:00:44.7]} 20... Nb6 {[%clk 0:01:06]} 21.
Rad1 {[%clk 0:00:36.6]} 21... b4 {[%clk 0:01:05.2]} 22. axb4 {[%clk 0:00:37.5]}
22... cxb4 {[%clk 0:01:06]} 23. Na2 {[%clk 0:00:24.7]} 23... a5 {[%clk
0:00:58.4]} 24. Qb5 {[%clk 0:00:20.3]} 24... Nc8 {[%clk 0:00:54.4]} 25. Qd7
{[%clk 0:00:17.7]} 25... Bxb2 {[%clk 0:00:45.8]} 26. Re2 {[%clk 0:00:08.5]}
26... Bf6 {[%clk 0:00:44.6]} 27. Nc1 {[%clk 0:00:04.9]} 27... Ba6 {[%clk
0:00:43.1]} 28. Nd3 {[%clk 0:00:04.9]} 28... Ra7 {[%clk 0:00:42.3]} 29. Qxe7
{[%clk 0:00:04.7]} 29... Nxe7 {[%clk 0:00:41.1]} 30. Ra2 {[%clk 0:00:05]} 30...
Bc4 {[%clk 0:00:39.3]} 31. Rc2 {[%clk 0:00:04.5]} 31... Bb3 {[%clk 0:00:38.3]}
32. Rdc1 {[%clk 0:00:05.1]} 32... Bxc2 {[%clk 0:00:38]} 33. Rxc2 {[%clk
0:00:06]} 33... b3 {[%clk 0:00:38]} 34. Rc4 {[%clk 0:00:03]} 34... b2 {[%clk
0:00:36.7]} 35. Nxb2 {[%clk 0:00:03.1]} 35... Bxb2 {[%clk 0:00:35.3]} 36. Nf7
{[%clk 0:00:04]} 36... Rxf7 {[%clk 0:00:32.9]} 37. exf7+ {[%clk 0:00:04.3]}
37... Kxf7 {[%clk 0:00:33.4]} 38. h4 {[%clk 0:00:03.6]} 38... a4 {[%clk
0:00:32.9]} 39. h5 {[%clk 0:00:04.1]} 39... a3 {[%clk 0:00:32.6]} 40. hxg6+
{[%clk 0:00:04.6]} 40... hxg6 {[%clk 0:00:33.3]} 0-1

[Event "Early-Titled-Tuesday-Blitz-May-14-2024"]
[Site "Chess.com"]
[Date "2024.05.14"]
[Round "8"]
[White "Orest_Vovk"]
[Black "Cherepov_Alexej"]
[Result "1-0"]
[WhiteElo "2653"]
[BlackElo "2425"]
[TimeControl "180+1"]
[EndTime "9:30:27 PDT"]
[Termination "Orest_Vovk won on time"]

1. h4 {[%clk 0:03:00.9]} 1... d5 {[%clk 0:02:53.9]} 2. h5 {[%clk 0:03:00.9]}
2... h6 {[%clk 0:02:51.6]} 3. e4 {[%clk 0:03:01]} 3... dxe4 {[%clk 0:02:51]} 4.
Nc3 {[%clk 0:02:59.9]} 4... Nf6 {[%clk 0:02:50.9]} 5. Qe2 {[%clk 0:03:00.4]}
5... Nc6 {[%clk 0:02:40.2]} 6. Nxe4 {[%clk 0:02:59.9]} 6... Bf5 {[%clk
0:02:17.4]} 7. Nxf6+ {[%clk 0:02:58.6]} 7... gxf6 {[%clk 0:02:18.3]} 8. d3
{[%clk 0:02:53.2]} 8... Nd4 {[%clk 0:02:17.3]} 9. Qd1 {[%clk 0:02:53.3]} 9... e5
{[%clk 0:02:14.3]} 10. c3 {[%clk 0:02:53.7]} 10... Nc6 {[%clk 0:02:11.4]} 11.
Be3 {[%clk 0:02:54]} 11... Rg8 {[%clk 0:02:04.8]} 12. Qb3 {[%clk 0:02:50.5]}
12... Qd7 {[%clk 0:02:01.6]} 13. O-O-O {[%clk 0:02:46.7]} 13... O-O-O {[%clk
0:02:01.4]} 14. Rh4 {[%clk 0:02:34.6]} 14... Kb8 {[%clk 0:01:52.6]} 15. Ra4
{[%clk 0:02:27.7]} 15... Be6 {[%clk 0:01:50.6]} 16. Qb5 {[%clk 0:02:20.9]} 16...
f5 {[%clk 0:01:40.8]} 17. g3 {[%clk 0:02:02.4]} 17... Qd5 {[%clk 0:01:22]} 18.
Qxd5 {[%clk 0:01:54.3]} 18... Bxd5 {[%clk 0:01:22.9]} 19. Bh3 {[%clk 0:01:52.9]}
19... Be6 {[%clk 0:01:03]} 20. Nf3 {[%clk 0:01:38.4]} 20... a6 {[%clk 0:01:01]}
21. Nh4 {[%clk 0:01:35.4]} 21... f4 {[%clk 0:00:55.3]} 22. Bxe6 {[%clk
0:01:32.8]} 22... fxe3 {[%clk 0:00:55.1]} 23. Bxf7 {[%clk 0:01:32.2]} 23... Rg7
{[%clk 0:00:47.5]} 24. Bg6 {[%clk 0:01:31.3]} 24... exf2 {[%clk 0:00:46.7]} 25.
Rf1 {[%clk 0:01:26.5]} 25... Bc5 {[%clk 0:00:42.3]} 26. d4 {[%clk 0:01:17.6]}
26... exd4 {[%clk 0:00:41]} 27. Rxf2 {[%clk 0:01:12.8]} 27... dxc3 {[%clk
0:00:37]} 28. Rf3 {[%clk 0:00:57.9]} 28... cxb2+ {[%clk 0:00:34]} 29. Kxb2
{[%clk 0:00:56.7]} 29... Rd2+ {[%clk 0:00:30.3]} 30. Kc3 {[%clk 0:00:51.5]}
30... Rgd7 {[%clk 0:00:27]} 31. Rd3 {[%clk 0:00:42.5]} 31... R7xd3+ {[%clk
0:00:15.7]} 32. Bxd3 {[%clk 0:00:42.2]} 32... Rg2 {[%clk 0:00:14.9]} 33. Nf5
{[%clk 0:00:37.6]} 33... Ne5 {[%clk 0:00:08.2]} 34. Be4 {[%clk 0:00:30]} 34...
Rf2 {[%clk 0:00:07.6]} 35. Ra5 {[%clk 0:00:26]} 35... Bd6 {[%clk 0:00:04.6]} 36.
Nxh6 {[%clk 0:00:21]} 36... Rf6 {[%clk 0:00:03]} 37. Nf5 {[%clk 0:00:20.1]} 1-0

[Event "Early-Titled-Tuesday-Blitz-May-14-2024"]
[Site "Chess.com"]
[Date "2024.05.14"]
[Round "8"]
[White "Msb2"]
[Black "the_chess_child"]
[Result "1-0"]
[WhiteElo "3072"]
[BlackElo "2888"]
[TimeControl "180+1"]
[EndTime "9:30:28 PDT"]
[Termination "Msb2 won on time"]

1. d4 {[%clk 0:03:00.9]} 1... Nf6 {[%clk 0:02:57.6]} 2. c4 {[%clk 0:03:01.4]}
2... g6 {[%clk 0:02:55.6]} 3. Nc3 {[%clk 0:03:01.8]} 3... Bg7 {[%clk 0:02:54.9]}
4. e4 {[%clk 0:03:02.2]} 4... d6 {[%clk 0:02:55]} 5. Be2 {[%clk 0:03:02.9]} 5...
O-O {[%clk 0:02:54.1]} 6. Nf3 {[%clk 0:03:03.5]} 6... e5 {[%clk 0:02:46.2]} 7.
Be3 {[%clk 0:03:03.7]} 7... Ng4 {[%clk 0:02:45]} 8. Bg5 {[%clk 0:03:03.2]} 8...
f6 {[%clk 0:02:45.4]} 9. Bh4 {[%clk 0:03:03.9]} 9... Nc6 {[%clk 0:02:36.3]} 10.
d5 {[%clk 0:03:04.2]} 10... Ne7 {[%clk 0:02:36.4]} 11. Nd2 {[%clk 0:03:04.9]}
11... h5 {[%clk 0:02:30.1]} 12. h3 {[%clk 0:03:05]} 12... Nh6 {[%clk 0:02:30.1]}
13. f3 {[%clk 0:03:05.7]} 13... g5 {[%clk 0:02:26.2]} 14. Bf2 {[%clk 0:03:05.5]}
14... f5 {[%clk 0:02:26.7]} 15. c5 {[%clk 0:03:06.2]} 15... Ng6 {[%clk 0:02:26]}
16. Nc4 {[%clk 0:03:05.7]} 16... g4 {[%clk 0:02:16.2]} 17. hxg4 {[%clk
0:02:59.1]} 17... hxg4 {[%clk 0:02:04.1]} 18. exf5 {[%clk 0:02:37]} 18... Nxf5
{[%clk 0:01:57.5]} 19. fxg4 {[%clk 0:02:36.4]} 19... Nd4 {[%clk 0:01:56.3]} 20.
Qd3 {[%clk 0:02:35.4]} 20... e4 {[%clk 0:01:42.5]} 21. Nxe4 {[%clk 0:01:48.9]}
21... Nxe2 {[%clk 0:01:07.7]} 22. Qxe2 {[%clk 0:01:16.3]} 22... Nf4 {[%clk
0:01:07.4]} 23. Qc2 {[%clk 0:01:17]} 23... Nxg2+ {[%clk 0:00:41.9]} 24. Kf1
{[%clk 0:01:15.5]} 24... Nf4 {[%clk 0:00:32.6]} 25. Nexd6 {[%clk 0:01:07.5]}
25... cxd6 {[%clk 0:00:13.6]} 26. Qh7+ {[%clk 0:00:59.4]} 26... Kf7 {[%clk
0:00:13.6]} 27. Nxd6+ {[%clk 0:01:00.3]} 27... Qxd6 {[%clk 0:00:14.2]} 28. cxd6
{[%clk 0:01:01.2]} 28... Bxg4 {[%clk 0:00:14.4]} 29. Re1 {[%clk 0:00:56.9]}
29... Rae8 {[%clk 0:00:09.7]} 30. Re4 {[%clk 0:00:40.5]} 30... Rxe4 {[%clk
0:00:04]} 31. Qxe4 {[%clk 0:00:41.4]} 31... Kg8 {[%clk 0:00:04.4]} 32. Rg1
{[%clk 0:00:27.9]} 32... Bf5 {[%clk 0:00:02]} 33. Qe7 {[%clk 0:00:25.6]} 33...
Bg6 {[%clk 0:00:00.4]} 34. d7 {[%clk 0:00:22.5]} 34... Rf7 {[%clk 0:00:00.4]}
35. d8=Q+ {[%clk 0:00:22.8]} 1-0

[Event "Early-Titled-Tuesday-Blitz-May-14-2024"]
[Site "Chess.com"]
[Date "2024.05.14"]
[Round "8"]
[White "Djager97"]
[Black "jraosam"]
[Result "1-0"]
[WhiteElo "2545"]
[BlackElo "2082"]
[TimeControl "180+1"]
[EndTime "9:30:28 PDT"]
[Termination "Djager97 won by resignation"]

1. e4 {[%clk 0:03:00.9]} 1... c5 {[%clk 0:03:00]} 2. Nf3 {[%clk 0:02:59.6]} 2...
e6 {[%clk 0:03:00.5]} 3. d4 {[%clk 0:02:58.5]} 3... cxd4 {[%clk 0:03:01.4]} 4.
Nxd4 {[%clk 0:02:59.4]} 4... a6 {[%clk 0:03:01.9]} 5. Nc3 {[%clk 0:02:59.7]}
5... Qc7 {[%clk 0:03:01.6]} 6. Bd3 {[%clk 0:02:58.2]} 6... Nf6 {[%clk
0:03:00.2]} 7. Qe2 {[%clk 0:02:56.6]} 7... d6 {[%clk 0:02:57.3]} 8. f4 {[%clk
0:02:56.1]} 8... Nbd7 {[%clk 0:02:57.1]} 9. g4 {[%clk 0:02:54.2]} 9... b5 {[%clk
0:02:48.3]} 10. a3 {[%clk 0:02:53.5]} 10... Bb7 {[%clk 0:02:44.4]} 11. g5 {[%clk
0:02:51.9]} 11... Ng8 {[%clk 0:02:42.2]} 12. Bd2 {[%clk 0:02:46.6]} 12... Nc5
{[%clk 0:02:39.2]} 13. O-O-O {[%clk 0:02:42.7]} 13... Rc8 {[%clk 0:02:36.4]} 14.
Kb1 {[%clk 0:02:42.3]} 14... Ne7 {[%clk 0:02:34.5]} 15. h4 {[%clk 0:02:34.3]}
15... Nc6 {[%clk 0:02:33.2]} 16. Nxc6 {[%clk 0:02:30.4]} 16... Bxc6 {[%clk
0:02:30.9]} 17. f5 {[%clk 0:02:30.1]} 17... Nxd3 {[%clk 0:02:28.8]} 18. Qxd3
{[%clk 0:02:22.6]} 18... e5 {[%clk 0:02:24.7]} 19. h5 {[%clk 0:02:15.7]} 19...
Bb7 {[%clk 0:02:21]} 20. g6 {[%clk 0:01:56.6]} 20... Qc4 {[%clk 0:02:10.9]} 21.
Qf3 {[%clk 0:01:38.5]} 21... f6 {[%clk 0:02:06.5]} 22. h6 {[%clk 0:01:32.2]}
22... gxh6 {[%clk 0:01:56.6]} 23. Rhg1 {[%clk 0:01:27]} 23... hxg6 {[%clk
0:01:54.5]} 24. Rxg6 {[%clk 0:01:27.9]} 24... Be7 {[%clk 0:01:51.8]} 25. Bxh6
{[%clk 0:01:20.2]} 25... Kd7 {[%clk 0:01:50.3]} 26. Bg7 {[%clk 0:00:45.4]} 26...
Rh4 {[%clk 0:01:43.1]} 27. Bxf6 {[%clk 0:00:45.5]} 27... Bxe4 {[%clk 0:01:22.7]}
28. Nxe4 {[%clk 0:00:45.1]} 28... Qxc2+ {[%clk 0:01:22.2]} 29. Ka2 {[%clk
0:00:45.7]} 29... Qc4+ {[%clk 0:01:19.2]} 30. Qb3 {[%clk 0:00:44.7]} 30... Qxb3+
{[%clk 0:01:11.2]} 31. Kxb3 {[%clk 0:00:45.6]} 31... Rxe4 {[%clk 0:01:09.9]} 32.
Bxe7 {[%clk 0:00:38.1]} 32... Kxe7 {[%clk 0:01:10.8]} 33. Re6+ {[%clk
0:00:37.3]} 33... Kf7 {[%clk 0:01:09.7]} 34. Rdxd6 {[%clk 0:00:37.7]} 34... Re3+
{[%clk 0:01:07.8]} 35. Ka2 {[%clk 0:00:34]} 35... Rc2 {[%clk 0:01:01.6]} 36.
Rd7+ {[%clk 0:00:33.8]} 36... Kf8 {[%clk 0:01:00]} 37. Rxa6 {[%clk 0:00:31.8]}
37... Ke8 {[%clk 0:00:55.8]} 38. Rh7 {[%clk 0:00:31.3]} 38... Rc8 {[%clk
0:00:51.8]} 39. Raa7 {[%clk 0:00:27]} 1-0

[Event "Early-Titled-Tuesday-Blitz-May-14-2024"]
[Site "Chess.com"]
[Date "2024.05.14"]
[Round "8"]
[White "baki83"]
[Black "vaishali2001"]
[Result "1-0"]
[WhiteElo "2927"]
[BlackElo "2693"]
[TimeControl "180+1"]
[EndTime "9:30:29 PDT"]
[Termination "baki83 won by resignation"]

1. e4 {[%clk 0:03:00.9]} 1... e5 {[%clk 0:02:58.2]} 2. Nf3 {[%clk 0:02:54.7]}
2... Nc6 {[%clk 0:02:58.5]} 3. Bb5 {[%clk 0:02:54.8]} 3... a6 {[%clk 0:02:57.7]}
4. Ba4 {[%clk 0:02:55.1]} 4... d6 {[%clk 0:02:55.2]} 5. O-O {[%clk 0:02:54.9]}
5... Nf6 {[%clk 0:02:51.6]} 6. Re1 {[%clk 0:02:54.9]} 6... Bd7 {[%clk
0:02:46.4]} 7. c3 {[%clk 0:02:53.7]} 7... g6 {[%clk 0:02:46.2]} 8. h3 {[%clk
0:02:53.6]} 8... Bg7 {[%clk 0:02:46]} 9. d4 {[%clk 0:02:54.2]} 9... O-O {[%clk
0:02:46]} 10. Nbd2 {[%clk 0:02:49.9]} 10... h6 {[%clk 0:02:39.1]} 11. Nf1 {[%clk
0:02:47.5]} 11... Qe8 {[%clk 0:02:27.8]} 12. Bc2 {[%clk 0:02:38.5]} 12... Nh5
{[%clk 0:02:25.1]} 13. Ne3 {[%clk 0:02:26.6]} 13... Qd8 {[%clk 0:02:15.7]} 14.
Nd5 {[%clk 0:02:15.5]} 14... Ne7 {[%clk 0:02:12.4]} 15. dxe5 {[%clk 0:01:57.3]}
15... dxe5 {[%clk 0:02:09.8]} 16. Be3 {[%clk 0:01:57.4]} 16... Nxd5 {[%clk
0:01:58.6]} 17. Qxd5 {[%clk 0:01:56.4]} 17... Bc6 {[%clk 0:01:56.9]} 18. Qc5
{[%clk 0:01:41.8]} 18... Re8 {[%clk 0:01:50.4]} 19. Rad1 {[%clk 0:01:41]} 19...
Qf6 {[%clk 0:01:49.7]} 20. Bb3 {[%clk 0:01:22.8]} 20... Bf8 {[%clk 0:01:22.5]}
21. Qc4 {[%clk 0:01:13.2]} 21... Bb5 {[%clk 0:00:32.5]} 22. Qxc7 {[%clk
0:01:07.3]} 22... Bc6 {[%clk 0:00:25.8]} 23. Bd5 {[%clk 0:00:54.8]} 23... Rac8
{[%clk 0:00:13.3]} 24. Qb6 {[%clk 0:00:54.5]} 24... Nf4 {[%clk 0:00:12.8]} 25.
Bxf4 {[%clk 0:00:45.5]} 25... Qxf4 {[%clk 0:00:12.7]} 26. Bxc6 {[%clk 0:00:45]}
26... bxc6 {[%clk 0:00:10.4]} 27. Qxa6 {[%clk 0:00:42.5]} 27... g5 {[%clk
0:00:10.9]} 28. Nh2 {[%clk 0:00:30.4]} 28... h5 {[%clk 0:00:10.7]} 29. Qe2
{[%clk 0:00:29.8]} 29... g4 {[%clk 0:00:09.7]} 30. hxg4 {[%clk 0:00:29.8]} 30...
h4 {[%clk 0:00:08.8]} 31. Qf3 {[%clk 0:00:29.1]} 31... Qh6 {[%clk 0:00:09.4]}
32. g5 {[%clk 0:00:28]} 32... Qg6 {[%clk 0:00:05.6]} 33. Qf5 {[%clk 0:00:24.9]}
33... Qh5 {[%clk 0:00:04.5]} 34. Ng4 {[%clk 0:00:24.3]} 34... Bg7 {[%clk
0:00:05.1]} 35. Rd6 {[%clk 0:00:21.9]} 35... Rcd8 {[%clk 0:00:04.6]} 36. Rh6
{[%clk 0:00:18.3]} 36... Bxh6 {[%clk 0:00:03.3]} 37. Nf6+ {[%clk 0:00:18.8]} 1-0

[Event "Early-Titled-Tuesday-Blitz-May-14-2024"]
[Site "Chess.com"]
[Date "2024.05.14"]
[Round "8"]
[White "JanMur7"]
[Black "AttilaTurzo"]
[Result "0-1"]
[WhiteElo "2269"]
[BlackElo "2454"]
[TimeControl "180+1"]
[EndTime "9:30:32 PDT"]
[Termination "AttilaTurzo won by resignation"]

1. c4 {[%clk 0:03:00.9]} 1... e5 {[%clk 0:02:58.5]} 2. Nc3 {[%clk 0:03:01]} 2...
Bb4 {[%clk 0:02:55.9]} 3. Qc2 {[%clk 0:03:00.1]} 3... Bxc3 {[%clk 0:02:52.5]} 4.
Qxc3 {[%clk 0:02:58.9]} 4... d6 {[%clk 0:02:50.6]} 5. g3 {[%clk 0:02:54]} 5...
f5 {[%clk 0:02:48.6]} 6. d4 {[%clk 0:02:50.4]} 6... Qe7 {[%clk 0:02:45]} 7. dxe5
{[%clk 0:02:48.6]} 7... dxe5 {[%clk 0:02:45.9]} 8. Bg2 {[%clk 0:02:45.7]} 8...
Nf6 {[%clk 0:02:46.3]} 9. Nf3 {[%clk 0:02:44.3]} 9... e4 {[%clk 0:02:43.1]} 10.
Nd4 {[%clk 0:02:42]} 10... c5 {[%clk 0:02:41.6]} 11. Nb3 {[%clk 0:02:37.9]}
11... O-O {[%clk 0:02:38]} 12. Be3 {[%clk 0:02:34.1]} 12... b6 {[%clk
0:02:37.9]} 13. a4 {[%clk 0:02:32.9]} 13... a5 {[%clk 0:02:27.9]} 14. f3 {[%clk
0:02:05.3]} 14... Bb7 {[%clk 0:02:27.3]} 15. O-O {[%clk 0:01:59.6]} 15... Nbd7
{[%clk 0:02:21.9]} 16. Rad1 {[%clk 0:01:47.7]} 16... Rfe8 {[%clk 0:02:22]} 17.
Bf4 {[%clk 0:01:38]} 17... Rac8 {[%clk 0:02:13.8]} 18. Nd2 {[%clk 0:01:29.9]}
18... h6 {[%clk 0:02:05.4]} 19. fxe4 {[%clk 0:01:28.9]} 19... Nxe4 {[%clk
0:02:04.4]} 20. Nxe4 {[%clk 0:01:28.4]} 20... Bxe4 {[%clk 0:01:59.7]} 21. Bxe4
{[%clk 0:01:27.9]} 21... fxe4 {[%clk 0:02:00.6]} 22. Qd2 {[%clk 0:00:55.3]}
22... Nf8 {[%clk 0:01:36.2]} 23. Qd5+ {[%clk 0:00:39]} 23... Qe6 {[%clk
0:01:34.3]} 24. b3 {[%clk 0:00:22.5]} 24... Qxd5 {[%clk 0:01:32.1]} 25. cxd5
{[%clk 0:00:22.3]} 25... c4 {[%clk 0:01:22.5]} 26. bxc4 {[%clk 0:00:18.2]} 26...
Rxc4 {[%clk 0:01:22.5]} 27. Rb1 {[%clk 0:00:11.6]} 27... Nd7 {[%clk 0:01:21.5]}
28. Rfc1 {[%clk 0:00:10]} 28... Rec8 {[%clk 0:01:19.7]} 29. Rxc4 {[%clk
0:00:06.7]} 29... Rxc4 {[%clk 0:01:20.6]} 30. Rc1 {[%clk 0:00:06.6]} 30... Rxc1+
{[%clk 0:01:16.9]} 31. Bxc1 {[%clk 0:00:07.5]} 31... Nf6 {[%clk 0:01:13.8]} 32.
d6 {[%clk 0:00:06.1]} 32... Kf7 {[%clk 0:01:12.9]} 33. Bb2 {[%clk 0:00:05.7]}
33... Nd7 {[%clk 0:00:58.6]} 34. g4 {[%clk 0:00:03]} 34... g6 {[%clk 0:00:58.4]}
35. h4 {[%clk 0:00:02.1]} 35... h5 {[%clk 0:00:56.4]} 36. gxh5 {[%clk 0:00:03]}
36... gxh5 {[%clk 0:00:57]} 37. Kf2 {[%clk 0:00:03.1]} 37... Ke6 {[%clk
0:00:56.8]} 38. Ke3 {[%clk 0:00:03.1]} 38... Nc5 {[%clk 0:00:54.5]} 39. Bd4
{[%clk 0:00:02.9]} 39... Nxa4 {[%clk 0:00:54]} 40. Kxe4 {[%clk 0:00:02]} 40...
Nc5+ {[%clk 0:00:47.8]} 41. Bxc5 {[%clk 0:00:02]} 41... bxc5 {[%clk 0:00:47.8]}
42. d7 {[%clk 0:00:02.2]} 42... Kxd7 {[%clk 0:00:47.6]} 43. Kd5 {[%clk
0:00:02.3]} 43... a4 {[%clk 0:00:48]} 44. Kc4 {[%clk 0:00:01.9]} 44... Ke6
{[%clk 0:00:48.2]} 45. Kc3 {[%clk 0:00:01.7]} 45... Ke5 {[%clk 0:00:48.4]} 46.
Kb2 {[%clk 0:00:01.5]} 46... Ke4 {[%clk 0:00:48.7]} 47. Ka3 {[%clk 0:00:01.8]}
47... Ke3 {[%clk 0:00:48.3]} 48. Kxa4 {[%clk 0:00:02.1]} 48... Kxe2 {[%clk
0:00:43.5]} 49. Kb5 {[%clk 0:00:02]} 49... Kf3 {[%clk 0:00:43.8]} 50. Kxc5
{[%clk 0:00:02.2]} 50... Kg4 {[%clk 0:00:44.2]} 51. Kd4 {[%clk 0:00:03.1]} 51...
Kxh4 {[%clk 0:00:44.6]} 52. Ke3 {[%clk 0:00:04]} 52... Kg3 {[%clk 0:00:45.1]}
53. Ke2 {[%clk 0:00:04.1]} 53... Kg2 {[%clk 0:00:45.6]} 54. Ke3 {[%clk
0:00:04.3]} 54... h4 {[%clk 0:00:46]} 55. Kf4 {[%clk 0:00:05.2]} 55... h3 {[%clk
0:00:46.9]} 56. Kg4 {[%clk 0:00:06.1]} 56... h2 {[%clk 0:00:47.8]} 0-1